[Event "*** SCC Grand Prix: Titled Tuesday Blitz"]
[Site "Chess.com"]
[Date "2020.06.02"]
[Round "6"]
[White "IMDT02"]
[Black "AlexTriapishko"]
[Result "0-1"]
[WhiteElo "2495"]
[BlackElo "2701"]
[TimeControl "180+1"]
[EndTime "11:08:19 PDT"]
[Termination "AlexTriapishko won on time"]

1. d4 {[%clk 0:02:59.4]} 1... Nf6 {[%clk 0:03:00]} 2. c4 {[%clk 0:02:49.8]} 2...
g6 {[%clk 0:03:00.9]} 3. Nc3 {[%clk 0:02:48.1]} 3... Bg7 {[%clk 0:03:01.5]} 4.
e4 {[%clk 0:02:48]} 4... O-O {[%clk 0:03:02.4]} 5. f3 {[%clk 0:02:48.2]} 5... d6
{[%clk 0:03:02.7]} 6. Nge2 {[%clk 0:02:48.3]} 6... c5 {[%clk 0:03:03.2]} 7. d5
{[%clk 0:02:48.5]} 7... e6 {[%clk 0:03:01.5]} 8. Be3 {[%clk 0:02:47.1]} 8...
exd5 {[%clk 0:03:01.2]} 9. cxd5 {[%clk 0:02:48]} 9... h5 {[%clk 0:02:57.4]} 10.
Qd2 {[%clk 0:02:41.3]} 10... Nbd7 {[%clk 0:02:53]} 11. Nf4 {[%clk 0:02:07.2]}
11... Ne5 {[%clk 0:02:43.3]} 12. Be2 {[%clk 0:02:07.4]} 12... Nh7 {[%clk
0:02:35.4]} 13. O-O {[%clk 0:02:02.4]} 13... h4 {[%clk 0:02:35.4]} 14. b3 {[%clk
0:01:48.9]} 14... a6 {[%clk 0:02:31.8]} 15. a4 {[%clk 0:01:48]} 15... Qe7 {[%clk
0:02:27.7]} 16. Nd3 {[%clk 0:01:36.4]} 16... f5 {[%clk 0:02:27.7]} 17. Nxe5
{[%clk 0:01:27.5]} 17... Qxe5 {[%clk 0:02:25.5]} 18. Rac1 {[%clk 0:01:25.3]}
18... f4 {[%clk 0:02:25.6]} 19. Bf2 {[%clk 0:01:25.3]} 19... h3 {[%clk
0:02:26.1]} 20. g3 {[%clk 0:01:25.8]} 20... Bh6 {[%clk 0:02:20.3]} 21. Qd3
{[%clk 0:00:33.5]} 21... g5 {[%clk 0:02:11.5]} 22. Rcd1 {[%clk 0:00:29.2]} 22...
Bg7 {[%clk 0:02:11.3]} 23. Nb1 {[%clk 0:00:25.1]} 23... Bd7 {[%clk 0:02:03]} 24.
a5 {[%clk 0:00:12.5]} 24... Bb5 {[%clk 0:01:43.5]} 25. Qd2 {[%clk 0:00:12.5]}
25... Bxe2 {[%clk 0:01:44.2]} 26. Qxe2 {[%clk 0:00:13.4]} 26... g4 {[%clk
0:01:45.1]} 27. gxf4 {[%clk 0:00:09.2]} 27... Qxf4 {[%clk 0:01:42.1]} 28. Bg3
{[%clk 0:00:09.4]} 28... gxf3 {[%clk 0:01:42.5]} 29. Qd3 {[%clk 0:00:04.7]}
29... Qg4 {[%clk 0:01:41]} 30. Nd2 {[%clk 0:00:04.2]} 30... Be5 {[%clk
0:01:30.5]} 31. Rxf3 {[%clk 0:00:03.5]} 31... Ng5 {[%clk 0:01:29.7]} 32. Rxf8+
{[%clk 0:00:02.5]} 32... Rxf8 {[%clk 0:01:30.6]} 33. Rf1 {[%clk 0:00:02.9]}
33... Bd4+ {[%clk 0:01:26.3]} 34. Kh1 {[%clk 0:00:02.5]} 34... Rxf1+ {[%clk
0:01:26.7]} 35. Nxf1 {[%clk 0:00:02.6]} 35... Nxe4 {[%clk 0:01:23.9]} 36. Ne3
{[%clk 0:00:01.4]} 36... Qf3+ {[%clk 0:01:22.5]} 37. Kg1 {[%clk 0:00:01.3]}
37... Bxe3+ {[%clk 0:01:22.6]} 0-1

[Event "*** SCC Grand Prix: Titled Tuesday Blitz"]
[Site "Chess.com"]
[Date "2020.06.02"]
[Round "6"]
[White "Borsuk_Konstantin"]
[Black "Supernotar"]
[Result "0-1"]
[WhiteElo "2562"]
[BlackElo "2710"]
[TimeControl "180+1"]
[EndTime "11:08:20 PDT"]
[Termination "Supernotar won by resignation"]

1. d4 {[%clk 0:03:00.9]} 1... d5 {[%clk 0:02:59.9]} 2. c4 {[%clk 0:03:00.2]}
2... dxc4 {[%clk 0:03:00.3]} 3. Nf3 {[%clk 0:02:59.8]} 3... Nf6 {[%clk
0:03:00.6]} 4. e3 {[%clk 0:02:59.9]} 4... e6 {[%clk 0:03:01]} 5. Bxc4 {[%clk
0:02:59.9]} 5... a6 {[%clk 0:03:01.1]} 6. O-O {[%clk 0:02:58]} 6... b5 {[%clk
0:03:01.2]} 7. Bd3 {[%clk 0:02:52.6]} 7... Bb7 {[%clk 0:03:01.3]} 8. a4 {[%clk
0:02:51.6]} 8... b4 {[%clk 0:03:01.7]} 9. Nbd2 {[%clk 0:02:46.2]} 9... Nbd7
{[%clk 0:03:01.8]} 10. Qe2 {[%clk 0:02:31.7]} 10... c5 {[%clk 0:03:00.9]} 11. e4
{[%clk 0:02:29.9]} 11... Be7 {[%clk 0:02:58.1]} 12. Nb3 {[%clk 0:01:56]} 12...
cxd4 {[%clk 0:02:54.7]} 13. Nfxd4 {[%clk 0:01:39.5]} 13... O-O {[%clk
0:02:49.3]} 14. f4 {[%clk 0:01:24.7]} 14... Nc5 {[%clk 0:02:40.6]} 15. Bb1
{[%clk 0:01:08.9]} 15... Ncxe4 {[%clk 0:02:36]} 16. f5 {[%clk 0:01:03.2]} 16...
e5 {[%clk 0:02:07.2]} 17. Nf3 {[%clk 0:00:59.3]} 17... Ng4 {[%clk 0:01:57.8]}
18. Bxe4 {[%clk 0:00:49.1]} 18... Qb6+ {[%clk 0:01:52.8]} 19. Kh1 {[%clk
0:00:48.3]} 19... Bxe4 {[%clk 0:01:52.4]} 20. Qxe4 {[%clk 0:00:47.2]} 20... Nf2+
{[%clk 0:01:52.5]} 21. Rxf2 {[%clk 0:00:47.2]} 21... Qxf2 {[%clk 0:01:52.6]} 22.
Bd2 {[%clk 0:00:35.7]} 22... Rad8 {[%clk 0:01:37]} 23. a5 {[%clk 0:00:28.6]}
23... Rfe8 {[%clk 0:01:25.1]} 24. Rc1 {[%clk 0:00:24.4]} 24... h6 {[%clk
0:01:21.5]} 25. h3 {[%clk 0:00:19.5]} 25... Bf8 {[%clk 0:01:17.9]} 26. f6 {[%clk
0:00:19]} 26... g6 {[%clk 0:01:15.4]} 27. Rc7 {[%clk 0:00:16.9]} 27... Qf1+
{[%clk 0:01:09.6]} 28. Kh2 {[%clk 0:00:16.6]} 28... Re6 {[%clk 0:01:01.5]} 29.
Rc1 {[%clk 0:00:14.2]} 29... Qf2 {[%clk 0:00:58.1]} 30. Rc7 {[%clk 0:00:13.7]}
30... Rxf6 {[%clk 0:00:49.9]} 31. Qxe5 {[%clk 0:00:13.5]} 31... Bd6 {[%clk
0:00:48]} 0-1

[Event "*** SCC Grand Prix: Titled Tuesday Blitz"]
[Site "Chess.com"]
[Date "2020.06.02"]
[Round "6"]
[White "JozefKneht"]
[Black "Blitzking642"]
[Result "1-0"]
[WhiteElo "2511"]
[BlackElo "2307"]
[TimeControl "180+1"]
[EndTime "11:08:20 PDT"]
[Termination "JozefKneht won by resignation"]

1. e4 {[%clk 0:03:00.9]} 1... c5 {[%clk 0:03:00.2]} 2. Nf3 {[%clk 0:02:59.6]}
2... Nc6 {[%clk 0:03:00.5]} 3. d4 {[%clk 0:02:59.4]} 3... cxd4 {[%clk
0:03:01.4]} 4. Nxd4 {[%clk 0:02:59.7]} 4... g6 {[%clk 0:03:02]} 5. c4 {[%clk
0:02:58.9]} 5... Bg7 {[%clk 0:03:02.7]} 6. Be3 {[%clk 0:02:58.5]} 6... Nf6
{[%clk 0:03:03.2]} 7. Nc3 {[%clk 0:02:58.9]} 7... O-O {[%clk 0:03:03.7]} 8. Be2
{[%clk 0:02:59.3]} 8... d6 {[%clk 0:03:04.3]} 9. Qd2 {[%clk 0:02:58.2]} 9... Bd7
{[%clk 0:03:03.6]} 10. O-O {[%clk 0:02:57.4]} 10... Nxd4 {[%clk 0:03:03.5]} 11.
Bxd4 {[%clk 0:02:58.3]} 11... Bc6 {[%clk 0:03:04]} 12. f3 {[%clk 0:02:58.8]}
12... a5 {[%clk 0:03:04.4]} 13. b3 {[%clk 0:02:57.8]} 13... Nd7 {[%clk 0:03:04]}
14. Be3 {[%clk 0:02:57.7]} 14... Nc5 {[%clk 0:02:58.2]} 15. Rab1 {[%clk
0:02:57.5]} 15... Qb6 {[%clk 0:02:56.8]} 16. Rfc1 {[%clk 0:02:56.9]} 16... Rfc8
{[%clk 0:02:55.1]} 17. Rc2 {[%clk 0:02:50.1]} 17... Qd8 {[%clk 0:02:51.3]} 18.
a3 {[%clk 0:02:44]} 18... h5 {[%clk 0:02:48.5]} 19. b4 {[%clk 0:02:43]} 19...
axb4 {[%clk 0:02:48.5]} 20. axb4 {[%clk 0:02:42.7]} 20... Na4 {[%clk 0:02:49]}
21. Nd5 {[%clk 0:02:36.8]} 21... e6 {[%clk 0:02:13.8]} 22. Nf4 {[%clk
0:02:33.6]} 22... Qf6 {[%clk 0:02:02.6]} 23. Bf1 {[%clk 0:02:06.1]} 23... Be8
{[%clk 0:01:36.6]} 24. Ne2 {[%clk 0:01:58.4]} 24... Qe7 {[%clk 0:00:52.5]} 25.
Rd1 {[%clk 0:01:45.3]} 25... b5 {[%clk 0:00:49.3]} 26. cxb5 {[%clk 0:01:09.8]}
26... Rxc2 {[%clk 0:00:46.2]} 27. Qxc2 {[%clk 0:01:09.6]} 27... Bxb5 {[%clk
0:00:46.9]} 28. Nd4 {[%clk 0:01:04.3]} 28... Bxf1 {[%clk 0:00:37.3]} 29. Kxf1
{[%clk 0:01:05.2]} 29... Qb7 {[%clk 0:00:37.7]} 30. Qc6 {[%clk 0:00:58.5]} 30...
Qxc6 {[%clk 0:00:26.3]} 31. Nxc6 {[%clk 0:00:57.8]} 31... Bf8 {[%clk 0:00:26]}
32. b5 {[%clk 0:00:56.8]} 32... Nc5 {[%clk 0:00:21.7]} 33. Bxc5 {[%clk 0:00:48]}
33... dxc5 {[%clk 0:00:21]} 34. b6 {[%clk 0:00:48.5]} 1-0

[Event "*** SCC Grand Prix: Titled Tuesday Blitz"]
[Site "Chess.com"]
[Date "2020.06.02"]
[Round "6"]
[White "Reinaldovera"]
[Black "Storchnoi"]
[Result "1-0"]
[WhiteElo "2239"]
[BlackElo "2033"]
[TimeControl "180+1"]
[EndTime "11:08:20 PDT"]
[Termination "Reinaldovera won by resignation"]

1. d4 {[%clk 0:03:00.9]} 1... Nf6 {[%clk 0:02:59.1]} 2. c4 {[%clk 0:03:00.6]}
2... e6 {[%clk 0:02:59.1]} 3. Nc3 {[%clk 0:03:01]} 3... Bb4 {[%clk 0:02:59]} 4.
Qc2 {[%clk 0:03:01.5]} 4... c5 {[%clk 0:02:58.3]} 5. dxc5 {[%clk 0:03:00.7]}
5... O-O {[%clk 0:02:58.1]} 6. Bf4 {[%clk 0:02:57.9]} 6... Na6 {[%clk
0:02:55.6]} 7. Bd6 {[%clk 0:02:52.3]} 7... Re8 {[%clk 0:02:55.1]} 8. f3 {[%clk
0:02:46.8]} 8... Bxc5 {[%clk 0:02:54.1]} 9. Rd1 {[%clk 0:02:33.6]} 9... Qb6
{[%clk 0:02:37.9]} 10. Bxc5 {[%clk 0:02:31.6]} 10... Qxc5 {[%clk 0:02:29.5]} 11.
e4 {[%clk 0:02:30.7]} 11... d6 {[%clk 0:02:20.8]} 12. Qd2 {[%clk 0:02:19.8]}
12... Rd8 {[%clk 0:02:17.6]} 13. a3 {[%clk 0:01:56]} 13... b6 {[%clk 0:01:27]}
14. b4 {[%clk 0:01:52.2]} 14... Qc7 {[%clk 0:01:21.6]} 15. e5 {[%clk 0:01:38.1]}
15... Ne8 {[%clk 0:01:18.7]} 16. Nb5 {[%clk 0:01:36.6]} 16... Qb8 {[%clk
0:01:18]} 17. Nh3 {[%clk 0:01:18.9]} 17... Bd7 {[%clk 0:01:02]} 18. Nxd6 {[%clk
0:01:17.4]} 18... Ba4 {[%clk 0:00:48.7]} 19. c5 {[%clk 0:01:04]} 19... Bxd1
{[%clk 0:00:46.7]} 20. Bxa6 {[%clk 0:01:04.4]} 20... Bb3 {[%clk 0:00:38.4]} 21.
O-O {[%clk 0:01:02.2]} 21... bxc5 {[%clk 0:00:35.9]} 22. bxc5 {[%clk 0:00:59.2]}
22... Qc7 {[%clk 0:00:32.1]} 23. Qe3 {[%clk 0:00:53.4]} 23... Bd5 {[%clk
0:00:30.3]} 24. Nf4 {[%clk 0:00:51.8]} 24... Bc6 {[%clk 0:00:23.8]} 25. Bc4
{[%clk 0:00:45.8]} 25... Rab8 {[%clk 0:00:16.9]} 26. Nxf7 {[%clk 0:00:42.3]}
26... Kxf7 {[%clk 0:00:10.9]} 27. Nxe6 {[%clk 0:00:40.7]} 27... Qa5 {[%clk
0:00:09.7]} 28. Nxd8+ {[%clk 0:00:38.9]} 28... Ke7 {[%clk 0:00:10.3]} 29. Nxc6+
{[%clk 0:00:37.4]} 1-0

[Event "*** SCC Grand Prix: Titled Tuesday Blitz"]
[Site "Chess.com"]
[Date "2020.06.02"]
[Round "6"]
[White "Natalya_Buksa"]
[Black "Anwesh9792"]
[Result "0-1"]
[WhiteElo "2572"]
[BlackElo "2728"]
[TimeControl "180+1"]
[EndTime "11:08:23 PDT"]
[Termination "Anwesh9792 won by resignation"]

1. d4 {[%clk 0:01:17.8]} 1... Nf6 {[%clk 0:02:57.9]} 2. Nc3 {[%clk 0:01:17.4]}
2... d5 {[%clk 0:02:57.3]} 3. Bf4 {[%clk 0:01:16.7]} 3... e6 {[%clk 0:02:56]} 4.
e3 {[%clk 0:01:17]} 4... Bd6 {[%clk 0:02:46.4]} 5. Nf3 {[%clk 0:01:16.7]} 5...
c5 {[%clk 0:02:41.6]} 6. Bd3 {[%clk 0:01:16.7]} 6... Bxf4 {[%clk 0:02:34]} 7.
exf4 {[%clk 0:01:16.8]} 7... cxd4 {[%clk 0:02:34.9]} 8. Nxd4 {[%clk 0:01:17.2]}
8... Nc6 {[%clk 0:02:35.5]} 9. Nxc6 {[%clk 0:01:16.9]} 9... bxc6 {[%clk
0:02:35.4]} 10. O-O {[%clk 0:01:17.8]} 10... Qd6 {[%clk 0:01:21.3]} 11. Qd2
{[%clk 0:01:17.3]} 11... Rb8 {[%clk 0:01:20.8]} 12. b3 {[%clk 0:01:17.3]} 12...
O-O {[%clk 0:01:18.6]} 13. Ne2 {[%clk 0:01:17.2]} 13... c5 {[%clk 0:01:17.7]}
14. Rad1 {[%clk 0:01:15.4]} 14... a5 {[%clk 0:01:18]} 15. c4 {[%clk 0:01:15.7]}
15... a4 {[%clk 0:01:17.6]} 16. Bc2 {[%clk 0:01:15.6]} 16... axb3 {[%clk
0:01:16.8]} 17. axb3 {[%clk 0:01:15.9]} 17... Bb7 {[%clk 0:01:17.4]} 18. Qd3
{[%clk 0:01:14.9]} 18... Bc6 {[%clk 0:01:15.4]} 19. h3 {[%clk 0:01:13]} 19...
Rfd8 {[%clk 0:01:14]} 20. g4 {[%clk 0:01:05.6]} 20... g6 {[%clk 0:01:13.8]} 21.
Qe3 {[%clk 0:00:58.2]} 21... d4 {[%clk 0:01:13.3]} 22. Qe5 {[%clk 0:00:58.2]}
22... Ne8 {[%clk 0:01:11.4]} 23. Ng3 {[%clk 0:00:56.7]} 23... f6 {[%clk
0:01:09.3]} 24. Qxd6 {[%clk 0:00:55.5]} 24... Nxd6 {[%clk 0:01:10.2]} 25. Rfe1
{[%clk 0:00:55.8]} 25... Kf7 {[%clk 0:01:10.2]} 26. Rd2 {[%clk 0:00:53.3]} 26...
Ra8 {[%clk 0:01:09.3]} 27. Bd3 {[%clk 0:00:52.1]} 27... Ra3 {[%clk 0:01:08.5]}
28. Rb2 {[%clk 0:00:52.1]} 28... Rb8 {[%clk 0:01:08.5]} 29. Reb1 {[%clk
0:00:51.9]} 29... e5 {[%clk 0:01:06.6]} 30. fxe5 {[%clk 0:00:51.2]} 30... fxe5
{[%clk 0:01:07.5]} 31. Re1 {[%clk 0:00:50.6]} 31... Rbxb3 {[%clk 0:01:04.7]} 32.
Rxb3 {[%clk 0:00:44.7]} 32... Rxb3 {[%clk 0:01:05.6]} 33. Be4 {[%clk 0:00:28.8]}
33... Rxg3+ {[%clk 0:01:02]} 34. fxg3 {[%clk 0:00:28.2]} 34... Nxe4 {[%clk
0:01:01.3]} 35. Rb1 {[%clk 0:00:27.9]} 35... Ke6 {[%clk 0:01:01]} 36. Rb6 {[%clk
0:00:27.7]} 36... Kd6 {[%clk 0:01:01.4]} 37. Kf1 {[%clk 0:00:28]} 37... Nd2+
{[%clk 0:01:01.8]} 38. Ke2 {[%clk 0:00:28.3]} 38... Nxc4 {[%clk 0:01:02.7]} 39.
Rb8 {[%clk 0:00:28.8]} 39... e4 {[%clk 0:01:02.4]} 40. Rd8+ {[%clk 0:00:29.1]}
40... Bd7 {[%clk 0:01:02.7]} 41. Rh8 {[%clk 0:00:29]} 41... d3+ {[%clk
0:01:02.8]} 42. Ke1 {[%clk 0:00:28.1]} 42... e3 {[%clk 0:01:03.2]} 43. Rxh7
{[%clk 0:00:27.7]} 43... d2+ {[%clk 0:01:03.6]} 44. Ke2 {[%clk 0:00:28.2]} 44...
Nb2 {[%clk 0:01:03]} 45. Kxe3 {[%clk 0:00:27.7]} 45... d1=Q {[%clk 0:01:03.1]}
0-1

[Event "*** SCC Grand Prix: Titled Tuesday Blitz"]
[Site "Chess.com"]
[Date "2020.06.02"]
[Round "6"]
[White "ArnieChipmunk"]
[Black "capatl"]
[Result "0-1"]
[WhiteElo "2285"]
[BlackElo "2448"]
[TimeControl "180+1"]
[EndTime "11:08:23 PDT"]
[Termination "capatl won by resignation"]

1. e4 {[%clk 0:03:00.8]} 1... c5 {[%clk 0:02:59.1]} 2. Nf3 {[%clk 0:03:00.8]}
2... e6 {[%clk 0:02:58.5]} 3. d4 {[%clk 0:03:01.1]} 3... cxd4 {[%clk 0:02:59.4]}
4. Nxd4 {[%clk 0:03:01.9]} 4... a6 {[%clk 0:03:00]} 5. Nc3 {[%clk 0:03:02.3]}
5... b5 {[%clk 0:02:59.6]} 6. g3 {[%clk 0:03:02.5]} 6... Bb7 {[%clk 0:02:59.2]}
7. Bg2 {[%clk 0:03:02.9]} 7... Qc7 {[%clk 0:02:54.8]} 8. O-O {[%clk 0:03:03.3]}
8... Nc6 {[%clk 0:02:49]} 9. Re1 {[%clk 0:03:03.3]} 9... Rc8 {[%clk 0:02:36.6]}
10. a4 {[%clk 0:03:03.5]} 10... b4 {[%clk 0:02:33.1]} 11. Nd5 {[%clk 0:03:03.5]}
11... Qb8 {[%clk 0:02:26.2]} 12. c4 {[%clk 0:02:21]} 12... Nge7 {[%clk
0:02:11.5]} 13. Nb6 {[%clk 0:02:12.2]} 13... Rd8 {[%clk 0:01:56.9]} 14. Bf4
{[%clk 0:01:54.3]} 14... e5 {[%clk 0:01:47.9]} 15. Nf5 {[%clk 0:01:54.3]} 15...
Nxf5 {[%clk 0:01:32.2]} 16. exf5 {[%clk 0:01:53.5]} 16... Bc5 {[%clk 0:01:26.8]}
17. Qd5 {[%clk 0:01:23.5]} 17... d6 {[%clk 0:01:04.9]} 18. a5 {[%clk 0:01:00.3]}
18... O-O {[%clk 0:00:59.7]} 19. Bxe5 {[%clk 0:00:35.1]} 19... Bxb6 {[%clk
0:00:43.3]} 20. Bxg7 {[%clk 0:00:32.9]} 20... Nxa5 {[%clk 0:00:37.1]} 21. f6
{[%clk 0:00:17.5]} 21... Bxd5 {[%clk 0:00:33.1]} 22. Bxd5 {[%clk 0:00:18.4]}
22... Rfe8 {[%clk 0:00:28.6]} 23. Re7 {[%clk 0:00:17.9]} 23... Rxe7 {[%clk
0:00:27.3]} 24. fxe7 {[%clk 0:00:17.7]} 24... Kxg7 {[%clk 0:00:28.2]} 25. exd8=Q
{[%clk 0:00:16.9]} 25... Qxd8 {[%clk 0:00:27.5]} 0-1

[Event "*** SCC Grand Prix: Titled Tuesday Blitz"]
[Site "Chess.com"]
[Date "2020.06.02"]
[Round "6"]
[White "Stronger1799"]
[Black "DanielMieles1985"]
[Result "0-1"]
[WhiteElo "2348"]
[BlackElo "2575"]
[TimeControl "180+1"]
[EndTime "11:08:24 PDT"]
[Termination "DanielMieles1985 won by checkmate"]

1. e4 {[%clk 0:02:24]} 1... c5 {[%clk 0:02:58.8]} 2. Nf3 {[%clk 0:02:23.9]} 2...
Nc6 {[%clk 0:02:58.9]} 3. d4 {[%clk 0:02:24.5]} 3... cxd4 {[%clk 0:02:59.8]} 4.
Nxd4 {[%clk 0:02:25.2]} 4... g6 {[%clk 0:03:00.7]} 5. Nc3 {[%clk 0:02:25.4]}
5... Bg7 {[%clk 0:03:01.3]} 6. Be3 {[%clk 0:02:26.1]} 6... Nf6 {[%clk 0:03:02]}
7. f3 {[%clk 0:02:26.2]} 7... O-O {[%clk 0:03:01.8]} 8. Nb3 {[%clk 0:02:26.8]}
8... a5 {[%clk 0:03:01.1]} 9. Bb5 {[%clk 0:02:16]} 9... d6 {[%clk 0:02:55.1]}
10. Qe2 {[%clk 0:02:14]} 10... Be6 {[%clk 0:02:53]} 11. Rd1 {[%clk 0:02:10.5]}
11... Ne5 {[%clk 0:02:46.5]} 12. Nc5 {[%clk 0:02:06.5]} 12... Qc8 {[%clk
0:02:38.7]} 13. Nxe6 {[%clk 0:01:55.7]} 13... Qxe6 {[%clk 0:02:39.6]} 14. O-O
{[%clk 0:01:54.4]} 14... Rfc8 {[%clk 0:02:39.6]} 15. Nd5 {[%clk 0:01:46.5]}
15... Nxd5 {[%clk 0:02:26.8]} 16. Rxd5 {[%clk 0:01:45.7]} 16... Nc6 {[%clk
0:02:23.6]} 17. c3 {[%clk 0:01:43.2]} 17... a4 {[%clk 0:02:22.8]} 18. a3 {[%clk
0:01:39.2]} 18... Ne5 {[%clk 0:02:01]} 19. h3 {[%clk 0:01:28.4]} 19... Nd7
{[%clk 0:01:49]} 20. Qc2 {[%clk 0:00:45.4]} 20... Nc5 {[%clk 0:01:35.8]} 21.
Bxc5 {[%clk 0:00:42.6]} 21... Rxc5 {[%clk 0:01:32.4]} 22. Rfd1 {[%clk
0:00:34.5]} 22... Be5 {[%clk 0:01:24.1]} 23. Rxc5 {[%clk 0:00:22.9]} 23... dxc5
{[%clk 0:01:23.9]} 24. Bxa4 {[%clk 0:00:18.7]} 24... c4 {[%clk 0:01:22]} 25. Bd7
{[%clk 0:00:04.1]} 25... Qf6 {[%clk 0:01:21.9]} 26. Qd2 {[%clk 0:00:02.3]} 26...
Rd8 {[%clk 0:01:21.8]} 27. Kf1 {[%clk 0:00:01.5]} 27... Qh4 {[%clk 0:01:17]} 28.
Qf2 {[%clk 0:00:01.3]} 28... Qf4 {[%clk 0:01:17]} 29. Qb6 {[%clk 0:00:01.4]}
29... Bc7 {[%clk 0:01:13.3]} 30. Qxb7 {[%clk 0:00:01.9]} 30... Qh2 {[%clk
0:01:11.1]} 31. Ba4 {[%clk 0:00:01.5]} 31... Rxd1+ {[%clk 0:01:06.5]} 32. Bxd1
{[%clk 0:00:02.4]} 32... Bg3 {[%clk 0:01:07.4]} 33. Ke2 {[%clk 0:00:01.8]} 33...
Qxg2+ {[%clk 0:01:07.3]} 34. Ke3 {[%clk 0:00:01.7]} 34... Qf2# {[%clk
0:01:07.6]} 0-1

[Event "*** SCC Grand Prix: Titled Tuesday Blitz"]
[Site "Chess.com"]
[Date "2020.06.02"]
[Round "6"]
[White "wild_cat99"]
[Black "Makswolf200817"]
[Result "1-0"]
[WhiteElo "2576"]
[BlackElo "2388"]
[TimeControl "180+1"]
[EndTime "11:08:27 PDT"]
[Termination "wild_cat99 won by resignation"]

1. Nf3 {[%clk 0:03:00.9]} 1... d5 {[%clk 0:02:59.5]} 2. e3 {[%clk 0:03:01.1]}
2... Nf6 {[%clk 0:02:58.7]} 3. c4 {[%clk 0:03:00.7]} 3... c6 {[%clk 0:02:56.6]}
4. Nc3 {[%clk 0:03:00.2]} 4... a6 {[%clk 0:02:54.6]} 5. d4 {[%clk 0:02:57.7]}
5... Bf5 {[%clk 0:02:52.2]} 6. Qb3 {[%clk 0:02:53.1]} 6... b5 {[%clk 0:02:37.9]}
7. c5 {[%clk 0:02:52]} 7... e6 {[%clk 0:02:34.7]} 8. a4 {[%clk 0:02:48.4]} 8...
Nbd7 {[%clk 0:02:33.3]} 9. Nh4 {[%clk 0:02:46.8]} 9... Bg4 {[%clk 0:02:31.8]}
10. h3 {[%clk 0:02:46]} 10... Bh5 {[%clk 0:02:31.7]} 11. g4 {[%clk 0:02:39.3]}
11... Bg6 {[%clk 0:02:27.7]} 12. g5 {[%clk 0:02:39.8]} 12... Ne4 {[%clk
0:02:14.7]} 13. Nxg6 {[%clk 0:02:33]} 13... hxg6 {[%clk 0:02:14]} 14. Nxe4
{[%clk 0:02:32.8]} 14... dxe4 {[%clk 0:02:13.7]} 15. Bg2 {[%clk 0:02:31.2]}
15... Rh4 {[%clk 0:02:03.9]} 16. Qc2 {[%clk 0:02:27.1]} 16... Qxg5 {[%clk
0:01:57.4]} 17. Bxe4 {[%clk 0:02:26.4]} 17... Rc8 {[%clk 0:01:57.7]} 18. axb5
{[%clk 0:02:18.4]} 18... axb5 {[%clk 0:01:56.6]} 19. f4 {[%clk 0:02:17.8]} 19...
Qh5 {[%clk 0:01:47.9]} 20. Qg2 {[%clk 0:02:15.2]} 20... Nb8 {[%clk 0:01:27.7]}
21. Ra8 {[%clk 0:02:14.9]} 21... Kd8 {[%clk 0:01:09.3]} 22. Bxc6 {[%clk
0:02:08.2]} 22... Nxc6 {[%clk 0:01:05.3]} 23. Rxc8+ {[%clk 0:02:09.1]} 23...
Kxc8 {[%clk 0:01:06.2]} 24. Qxc6+ {[%clk 0:02:09.6]} 24... Kd8 {[%clk
0:01:07.1]} 25. Bd2 {[%clk 0:02:05.5]} 25... Rxh3 {[%clk 0:01:02.4]} 26. Ba5+
{[%clk 0:02:03.5]} 26... Ke7 {[%clk 0:01:00.5]} 27. Qd6+ {[%clk 0:02:02.8]}
27... Kf6 {[%clk 0:00:46.7]} 28. Bd8+ {[%clk 0:02:02]} 28... Kf5 {[%clk
0:00:44.2]} 29. Qe5+ {[%clk 0:02:01.2]} 29... Kg4 {[%clk 0:00:43.8]} 30. Rg1+
{[%clk 0:02:01.8]} 30... Kf3 {[%clk 0:00:41.6]} 31. Rf1+ {[%clk 0:01:55.8]}
31... Kg4 {[%clk 0:00:40.3]} 32. f5 {[%clk 0:01:34.4]} 32... Qh6 {[%clk
0:00:19.6]} 33. Rf4+ {[%clk 0:01:33.1]} 33... Kh5 {[%clk 0:00:19.6]} 34. fxg6+
{[%clk 0:01:25.3]} 34... f5 {[%clk 0:00:19.3]} 35. Qxe6 {[%clk 0:01:25.2]} 35...
Qxg6 {[%clk 0:00:16]} 36. Rxf5+ {[%clk 0:01:25.3]} 36... Kh6 {[%clk 0:00:16]}
37. Bg5+ {[%clk 0:01:20.2]} 37... Kh7 {[%clk 0:00:15]} 38. Qxg6+ {[%clk
0:01:13.4]} 38... Kxg6 {[%clk 0:00:15.9]} 39. Rxf8 {[%clk 0:01:13.9]} 39... Kxg5
{[%clk 0:00:16.8]} 40. Kd2 {[%clk 0:01:13.8]} 40... Rh2+ {[%clk 0:00:16.8]} 41.
Kc3 {[%clk 0:01:12.8]} 41... Re2 {[%clk 0:00:16.8]} 42. Kd3 {[%clk 0:01:08.3]}
42... Rxb2 {[%clk 0:00:16.5]} 43. c6 {[%clk 0:01:08.8]} 43... Rb3+ {[%clk
0:00:16]} 44. Kd2 {[%clk 0:01:04.6]} 44... Rb4 {[%clk 0:00:15.7]} 45. c7 {[%clk
0:01:03.6]} 1-0